fUSD/lending_fUSD_20240523
["ID","MTS","AMOUNT","RATE_DAILY","PERIOD"]
[327784442,1716477042320,-500.0,0.00023988,2]
[327784443,1716477042330,-500.0,0.00023988,2]
[327784444,1716477042339,-500.0,0.00023988,2]
[327784445,1716477042349,-500.0,0.00023988,2]
[327784446,1716477042359,-500.0,0.00023988,2]
[327784447,1716477042368,-500.0,0.00023988,2]
[327784448,1716477042377,-500.0,0.00023988,2]
[327784449,1716477042388,-1925.04,0.00023989,3]
[327784450,1716477042397,-500.0,0.00023989,3]
[327784451,1716477042407,-413.21246304,0.00023989,3]
[327784452,1716477042417,-500.0,0.00023989,3]
[327784453,1716477042427,-500.0,0.00023989,3]
[327784454,1716477042436,-500.0,0.00023989,3]
[327784455,1716477042445,-583.66,0.00023989,3]
[327784456,1716477042455,-547.79,0.00023989,3]
[327784457,1716477042465,-500.0,0.00023989,3]
[327784458,1716477042474,-500.0,0.00023989,3]
[327784459,1716477042484,-623.43129732,0.00023989,3]
[327784460,1716477042494,-500.0,0.00023989,3]
[327784461,1716477042503,-500.0,0.00023989,3]
[327784462,1716477042514,-500.0,0.00023989,3]
[327784463,1716477042524,-500.0,0.00023989,3]
[327784464,1716477042533,-795.75,0.00023989,3]
[327784465,1716477042544,-500.0,0.00023989,3]
[327784466,1716477042557,-500.0,0.00023989,3]
[327784467,1716477042567,-150.5,0.0002399,15]
[327784468,1716477042576,-500.0,0.0002399,3]
[327784469,1716477042587,-184.42,0.0002399,3]
[327784470,1716477042597,-234.0,0.0002399,15]
[327784471,1716477042606,-500.0,0.0002399,3]
[327784472,1716477042616,-500.0,0.0002399,3]
[327784473,1716477042627,-500.0,0.0002399,3]
[327784474,1716477042637,-582.95,0.0002399,3]
[327784475,1716477042648,-519.34815289,0.0002399,3]
[327784476,1716477042658,-500.0,0.0002399,3]
[327784477,1716477042667,-500.0,0.0002399,3]
[327784478,1716477042677,-500.0,0.0002399,3]
[327784479,1716477042686,-217.78226268,0.0002399,3]
[327784480,1716477042695,-500.0,0.0002399,3]
[327784481,1716477042705,-500.0,0.0002399,3]
[327784482,1716477042715,-500.0,0.0002399,3]
[327784483,1716477042724,-500.0,0.0002399,3]
[327784484,1716477042733,-973.9,0.0002399,3]
[327784485,1716477042743,-500.0,0.0002399,3]
[327784486,1716477042753,-150.0,0.0002399,2]
[327784487,1716477042763,-500.0,0.0002399,3]
[327784488,1716477042773,-500.0,0.0002399,3]
[327784489,1716477042782,-500.0,0.0002399,3]
[327784490,1716477042792,-500.0,0.0002399,3]
[327784491,1716477042801,-500.0,0.0002399,3]
[327784492,1716477042811,-500.0,0.0002399,3]
[327784494,1716477042823,-500.0,0.0002399,3]
[327784496,1716477042834,-500.0,0.0002399,3]
[327784499,1716477042844,-500.0,0.0002399,3]
[327784501,1716477042854,-500.0,0.0002399,3]
[327784503,1716477042863,-500.0,0.0002399,3]
[327784505,1716477042873,-500.0,0.0002399,3]
[327784506,1716477042883,-500.0,0.0002399,3]
[327784509,1716477042892,-500.0,0.0002399,3]
[327784511,1716477042903,-500.0,0.0002399,3]
[327784512,1716477042912,-519.48,0.0002399,3]
[327784514,1716477042922,-511.38539852,0.0002399,3]
[327784515,1716477042933,-500.0,0.0002399,3]
[327784516,1716477042942,-500.0,0.0002399,3]
[327784517,1716477042951,-500.0,0.0002399,3]
[327784518,1716477042961,-515.90114429,0.0002399,3]
[327784519,1716477042972,-596.15,0.0002399,3]
[327784520,1716477042982,-500.0,0.0002399,3]
[327784521,1716477042992,-500.0,0.0002399,3]
[327784522,1716477043001,-500.0,0.0002399,3]
[327784523,1716477043011,-500.0,0.0002399,3]
[327784524,1716477043020,-500.0,0.0002399,3]
[327784525,1716477043030,-500.0,0.0002399,3]
[327784526,1716477043039,-500.0,0.0002399,3]
[327784527,1716477043049,-1027.23,0.0002399,2]
[327784528,1716477043058,-500.0,0.0002399,3]
[327784529,1716477043068,-296.82767549,0.0002399,3]
[327784530,1716477043078,-500.0,0.0002399,3]
[327784531,1716477043087,-500.0,0.0002399,3]
[327784532,1716477043097,-500.0,0.0002399,3]
[327784533,1716477043107,-208.12,0.0002399,3]
[327784534,1716477043117,-500.0,0.0002399,3]
[327784535,1716477043126,-500.0,0.0002399,3]
[327784536,1716477043135,-500.0,0.0002399,3]
[327784537,1716477043145,-500.0,0.0002399,3]
[327784538,1716477043156,-500.0,0.0002399,3]
[327784540,1716477043166,-557.36183932,0.0002399,3]
[327784542,1716477043176,-1049.26,0.0002399,3]
[327784544,1716477043186,-500.0,0.0002399,3]
[327784546,1716477043196,-500.0,0.0002399,3]
[327784548,1716477043205,-595.32149827,0.0002399,3]
[327784550,1716477043216,-500.0,0.0002399,3]
[327784552,1716477043225,-500.0,0.0002399,3]
[327784553,1716477043235,-256.98455348,0.0002399,3]
[327784554,1716477043244,-500.0,0.0002399,3]
[327784555,1716477043253,-360.49161941,0.0002399,3]
[327784556,1716477043263,-500.0,0.0002399,3]
[327784557,1716477043272,-500.0,0.0002399,3]
[327784558,1716477043282,-500.0,0.0002399,3]
[327784559,1716477043292,-500.0,0.0002399,3]
[327784560,1716477043302,-500.0,0.0002399,3]
[327784561,1716477043313,-500.0,0.00023991,4]
[327784562,1716477043324,-510.10260605,0.00023992,3]
[327784563,1716477043335,-500.0,0.00023992,3]
[327784564,1716477043347,-489.88449885,0.00023995,2]
[327784565,1716477043358,-500.0,0.00023996,5]
[327784566,1716477043370,-500.0,0.00023996,6]
[327784567,1716477043381,-500.0,0.00023996,7]
[327784568,1716477043392,-500.0,0.00023996,8]
[327784569,1716477043404,-500.0,0.00023996,9]
[327784570,1716477043414,-500.0,0.00023996,10]
[327784571,1716477043423,-500.0,0.00023996,2]
[327784572,1716477043434,-500.0,0.00023996,2]
[327784573,1716477043447,-500.0,0.00023996,2]
[327784574,1716477043459,-500.0,0.00023996,2]
[327784575,1716477043470,-500.0,0.00023996,2]
[327784577,1716477043481,-1810.8,0.00023996,2]
[327784579,1716477043492,-500.0,0.00023996,2]
[327784581,1716477043503,-1114.98,0.00023996,2]
[327784583,1716477043515,-148731.56896229,0.00023997,2]
[327784584,1716477043525,-115777.29346642,0.00023997,2]
[327784589,1716477043567,-150.0,0.00023737,2]
[327784591,1716477043578,-150.0,0.00023869,2]
[327784593,1716477043590,-851.72258312,0.00023997,2]
[327784595,1716477043604,-2039.265,0.00023997,2]
[327784596,1716477043834,150.0,0.00017545,2]
[327784597,1716477043918,150.0,0.00017534,2]
[327784598,1716477044019,150.0,0.00017729,2]
[327784599,1716477044086,150.0,0.00017708,2]
[327784600,1716477044191,150.0,0.00019245,2]
[327784602,1716477044207,-150.0,0.00023511,2]
[327784603,1716477044219,-150.0,0.00023712,2]
[327784605,1716477044236,-150.0,0.00023768,2]
[327784606,1716477044249,-150.0,0.00023837,2]
[327784607,1716477044262,-150.0,0.00023846,2]
[327784608,1716477044275,-500.0,0.00023895,2]
[327784609,1716477044289,-664.76364423,0.00023997,2]
[327784610,1716477044305,-5016.49665,0.00023997,2]
[327784611,1716477044321,-4497.3632,0.00023997,2]
[327784612,1716477044336,-1847.38118781,0.00023997,2]
[327784613,1716477044351,-3287.18455602,0.00023997,2]
[327784614,1716477044366,-25535.62979374,0.00023997,2]
[327784618,1716477044442,150.0,0.00017562,2]
[327784626,1716477044518,150.0,0.00017504,2]
[327784634,1716477044588,150.0,0.00017752,2]
[327784642,1716477044670,150.0,0.00019187,2]
[327784652,1716477044755,150.0,0.00019447,2]
[327784660,1716477044823,150.0,0.00019499,2]
[327784670,1716477044908,150.0,0.00019529,2]
[327784677,1716477044976,150.0,0.00019276,2]
[327784687,1716477045063,150.0,0.00017612,2]
[327784695,1716477045130,150.0,0.00017538,2]
[327784703,1716477045198,150.0,0.00019696,2]
[327784711,1716477045265,150.0,0.00019372,2]
[327784719,1716477045332,150.0,0.00019238,2]
[327784727,1716477045397,150.0,0.00017586,2]
[327784736,1716477045470,150.0,0.00019412,2]
[327784746,1716477045557,150.0,0.00019312,2]
[327784755,1716477045637,150.0,0.00017304,2]
[327784763,1716477045708,150.0,0.00019707,2]
[327784772,1716477045782,150.0,0.00019633,2]
[327784778,1716477045852,150.0,0.00019355,2]
[327784779,1716477045921,150.0,0.00019629,2]
[327784787,1716477045992,150.0,0.00019507,2]
[327784798,1716477046069,150.0,0.00019337,2]
[327784808,1716477046150,150.0,0.00019334,2]
[327784816,1716477046227,150.0,0.00023363,2]
[327784824,1716477046295,150.0,0.00019428,2]
[327784833,1716477046370,150.0,0.00019534,2]
[327784842,1716477046444,150.0,0.00019381,2]
[327784850,1716477046511,150.0,0.00023413,2]
[327784860,1716477046578,150.0,0.00019443,2]
[327784867,1716477046643,150.0,0.00019392,2]
[327784876,1716477046719,150.0,0.00019392,2]
[327784884,1716477046786,150.0,0.00019618,2]
[327784904,1716477046967,150.0,0.00019253,2]
[327784913,1716477047051,150.0,0.00019533,2]
[327784921,1716477047118,150.0,0.00023477,2]
[327784929,1716477047187,150.0,0.00019533,2]
[327784938,1716477047263,150.0,0.00019442,2]
[327784946,1716477047332,150.0,0.00019513,2]
[327784955,1716477047411,150.0,0.00019481,2]
[327784958,1716477047432,-150.0,0.00023517,2]
[327784961,1716477047444,-150.0,0.00023573,2]
[327784963,1716477047455,-150.0,0.00023748,2]
[327784965,1716477047466,-150.0,0.00023854,2]
[327784967,1716477047477,-150.0,0.00023866,2]
[327784969,1716477047488,-77095.90929654,0.00023997,2]
[327784971,1716477047499,-350.53368868,0.00023997,2]
[327784974,1716477047512,-271.3139154,0.00023998,2]
[327784976,1716477047524,-1695.71810275,0.00023998,2]
[327784978,1716477047535,-205.67992345,0.00023998,2]
[327784980,1716477047550,-155.22034771,0.00023998,2]
[327784982,1716477047561,-2185.6405926,0.00023998,2]
[327784984,1716477047572,-405.519977,0.00023998,2]
[327784987,1716477047583,-1323.39632475,0.00023998,2]
[327784989,1716477047596,-1378.02858088,0.00023998,2]
[327784991,1716477047607,-304.65791683,0.00023998,2]
[327784993,1716477047618,-340.85343991,0.00023998,2]
[327784995,1716477047630,-155.0,0.00023998,2]
[327784998,1716477047642,-3488.62355985,0.00023998,2]
[327785000,1716477047656,-155.78589455,0.00023998,2]
[327785002,1716477047667,-2576.83533335,0.00023998,2]
[327785004,1716477047678,-158.77584422,0.00023998,2]
[327785006,1716477047688,-687.88123392,0.00023998,2]
[327785008,1716477047699,-500.0,0.00023998,2]
[327785010,1716477047709,-170.0805395,0.00023998,2]
[327785013,1716477047722,-159.24420448,0.00023998,2]
[327785015,1716477047733,-409.03689151,0.00023998,2]
[327785017,1716477047744,-159.98769866,0.00023998,2]
[327785019,1716477047756,-710.94026186,0.00023998,2]
[327785021,1716477047768,-155.0,0.00023998,2]
[327785024,1716477047779,-155.23277733,0.00023998,2]
[327785026,1716477047790,-537.21494476,0.00023998,2]
[327785028,1716477047801,-155.79372783,0.00023998,2]
[327785030,1716477047812,-155.7084039,0.00023998,2]
[327785032,1716477047823,-206.84278778,0.00023998,2]
[327785035,1716477047835,-155.25674088,0.00023998,2]
[327785037,1716477047846,-155.39285354,0.00023998,2]
[327785039,1716477047858,-155.31813713,0.00023998,2]
[327785041,1716477047869,-155.0,0.00023998,2]
[327785043,1716477047880,-1213.97790017,0.00023998,2]
[327785045,1716477047891,-307.08025209,0.00023998,2]
[327785047,1716477047902,-302.02801804,0.00023998,2]
[327785050,1716477047915,-155.69717249,0.00023998,2]
[327785052,1716477047926,-682.50502438,0.00023998,2]
[327785054,1716477047937,-1095.19911458,0.00023998,2]
[327785056,1716477047948,-236.99959907,0.00023998,2]
[327785058,1716477047959,-8801.3753948,0.00023998,2]
[327785060,1716477047970,-45852.7837134,0.00023998,2]
[327785062,1716477047981,-8335.8361366,0.00023998,2]
[327785064,1716477047992,-293.0202813,0.00023998,2]
[327785067,1716477048003,-2044.3213102,0.00023998,2]
[327785069,1716477048015,-227.0,0.00023999,2]
[327785071,1716477048027,-227.0,0.00023999,2]
[327785072,1716477048039,-227.0,0.00023999,2]
[327785073,1716477048050,-227.0,0.00023999,2]
[327785074,1716477048062,-500.0,0.00023999,11]
[327785075,1716477048074,-500.0,0.00023999,12]
[327785076,1716477048085,-500.0,0.00023999,13]
[327785077,1716477048097,-500.0,0.00023999,14]
[327785078,1716477048108,-500.0,0.00023999,15]
[327785079,1716477048119,-500.0,0.00023999,16]
[327785080,1716477048130,-500.0,0.00023999,17]
[327785082,1716477048141,-500.0,0.00023999,18]
[327785084,1716477048155,-500.0,0.00023999,19]
[327785086,1716477048165,-500.0,0.00023999,20]
[327785088,1716477048176,-500.0,0.00023999,21]
[327785090,1716477048186,-500.0,0.00023999,21]
[327785092,1716477048196,-423.47205139,0.00023999,21]
[327785094,1716477048208,-150.0,0.00023999,2]
[327785096,1716477048219,-154.71057724,0.00023999,2]
[327785099,1716477048230,-29868.22080704,0.00024,13]
[327785101,1716477048244,-6399.31,0.00024,13]
[327785109,1716477048310,150.0,0.00019546,2]
[327785117,1716477048377,150.0,0.00023245,2]
[327785125,1716477048445,150.0,0.00019215,2]
[327785133,1716477048512,150.0,0.00019453,2]
[327785141,1716477048587,150.0,0.00019689,2]
[327785150,1716477048662,150.0,0.0001969,2]
[327785158,1716477048732,150.0,0.00023052,2]
[327785165,1716477048795,150.0,0.00019668,2]
[327785174,1716477048864,150.0,0.00019565,2]
[327785182,1716477048935,150.0,0.00019638,2]
[327785190,1716477049003,150.0,0.00023078,2]
[327785198,1716477049069,150.0,0.00023322,2]
[327785206,1716477049135,150.0,0.00019525,2]
[327785214,1716477049204,150.0,0.00019716,2]
[327785222,1716477049278,150.0,0.00023143,2]
[327785231,1716477049349,150.0,0.00023001,2]
[327785300,1716477050001,150.0,0.00022913,2]
[327785308,1716477050160,150.0,0.00019663,2]
[327785316,1716477050223,150.0,0.00019638,2]
[327785323,1716477050287,150.0,0.00022735,2]
[327785332,1716477050354,150.0,0.00022896,2]
[327785339,1716477050417,150.0,0.0001947,2]
[327785347,1716477050483,150.0,0.00022721,2]
[327785355,1716477050550,150.0,0.00022906,2]
[327785363,1716477050632,150.0,0.00019687,2]
[327785375,1716477050745,150.0,0.00022719,2]
[327785382,1716477050814,150.0,0.00022695,2]
[327785390,1716477050884,150.0,0.00022878,2]
[327785398,1716477050960,150.0,0.00022826,2]
[327785406,1716477051030,150.0,0.0002275,2]
[327785414,1716477051094,150.0,0.00022674,2]
[327785421,1716477051155,150.0,0.00022644,2]
[327785428,1716477051218,150.0,0.00022843,2]
[327785441,1716477051329,150.0,0.00022492,2]
[327785449,1716477051397,150.0,0.00022693,2]
[327785456,1716477051463,150.0,0.00022679,2]
[327785463,1716477051523,150.0,0.00022732,2]
[327785473,1716477051610,150.0,0.0002284,2]
[327785479,1716477051674,150.0,0.00022573,2]
[327785487,1716477051738,150.0,0.00022492,2]
[327785495,1716477051802,150.0,0.00022668,2]
[327785505,1716477051896,150.0,0.00022729,2]
[327785510,1716477052021,150.0,0.00022524,2]
[327785517,1716477052083,150.0,0.0002272,2]
[327785530,1716477052202,150.0,0.00022482,2]
[327785538,1716477052265,150.0,0.00022664,2]
[327785546,1716477052324,150.0,0.00022631,2]
[327785553,1716477052385,150.0,0.00022584,2]
[327785561,1716477052450,150.0,0.00022491,2]
[327785568,1716477052509,150.0,0.00022489,2]
[327785575,1716477052567,150.0,0.00022651,2]
[327785583,1716477052631,150.0,0.00022499,2]
[327785590,1716477052696,150.0,0.00022611,2]
[327785597,1716477052756,150.0,0.0002252,2]
[327785604,1716477052814,150.0,0.00022646,2]
[327785613,1716477052882,150.0,0.000226,2]
[327785620,1716477052948,150.0,0.00022491,2]
[327785628,1716477053011,150.0,0.00022505,2]
[327785636,1716477053077,150.0,0.0002258,2]
[327785649,1716477053209,150.0,0.00022655,2]
[327785650,1716477053271,150.0,0.0002244,2]
[327785651,1716477053339,150.0,0.0002254,2]
[327785652,1716477053406,150.0,0.00022387,2]
[327785653,1716477053469,150.0,0.00022564,2]
[327785654,1716477053532,150.0,0.00022657,2]
[327785655,1716477053602,150.0,0.00022689,2]
[327785656,1716477053671,150.0,0.00022584,2]
[327785657,1716477053734,150.0,0.00022427,2]
[327785658,1716477053795,150.0,0.00022627,2]
[327785659,1716477053856,150.0,0.0002253,2]
[327785664,1716477053918,150.0,0.00022611,2]
[327785665,1716477054019,234.38241129,0.00022492,2]
[327785666,1716477054082,150.0,0.00022499,2]
[327785667,1716477054156,150.0,0.00022528,2]
[327785668,1716477054220,150.0,0.00022422,2]
[327785669,1716477054291,150.0,0.00022549,2]
[327785670,1716477054751,150.0,0.00017806,2]
[327785671,1716477054818,150.0,0.00017742,2]
[327785672,1716477054889,150.0,0.00017628,2]
[327785673,1716477054962,150.0,0.0001777,2]
[327785674,1716477055029,150.0,0.00017633,2]
[327785675,1716477055094,150.0,0.00017624,2]
[327785676,1716477055159,150.0,0.00017551,2]
[327785677,1716477055218,150.0,0.00017564,2]
[327785678,1716477055285,150.0,0.00017536,2]
[327785679,1716477055350,150.0,0.00017617,2]
[327785680,1716477055417,150.0,0.00017757,2]
[327785681,1716477055487,150.0,0.00017571,2]
[327785682,1716477055583,150.0,0.00017539,2]
[327785683,1716477055647,150.0,0.00017568,2]
[327785684,1716477055710,150.0,0.00017695,2]
[327785685,1716477055941,150.0,0.00017721,2]
[327785686,1716477056004,150.0,0.00017566,2]
[327785687,1716477056070,150.0,0.00017673,2]
[327785688,1716477056131,150.0,0.00017557,2]
[327785689,1716477056194,150.0,0.00017618,2]
[327785690,1716477056261,150.0,0.00017734,2]
[327785691,1716477056319,150.0,0.00017675,2]
[327785692,1716477056377,150.0,0.00017612,2]
[327785693,1716477056438,150.0,0.00017675,2]
[327785694,1716477056497,150.0,0.00017645,2]
[327785695,1716477056558,150.0,0.00017761,2]
[327785696,1716477056622,150.0,0.00017695,2]
[327785697,1716477056684,150.0,0.0001776,2]
[327785698,1716477056744,150.0,0.00017722,2]
[327785699,1716477056805,150.0,0.00017659,2]
[327785700,1716477056867,150.0,0.0001761,2]
[327785701,1716477056931,150.0,0.00017602,2]
[327785702,1716477056994,150.0,0.00017708,2]
[327785703,1716477057059,150.0,0.0001765,2]
[327785704,1716477057124,150.0,0.00017588,2]
[327785705,1716477057194,150.0,0.00017728,2]
[327785706,1716477057258,150.0,0.00017802,2]
[327785707,1716477057320,150.0,0.00017686,2]
[327785708,1716477057390,150.0,0.00017693,2]
[327785709,1716477057451,150.0,0.00017619,2]
[327785710,1716477057512,150.0,0.00017638,2]
[327785711,1716477057574,150.0,0.0001761,2]
[327785712,1716477057638,150.0,0.00017789,2]
[327785713,1716477057805,150.0,0.00017616,2]
[327785714,1716477057865,150.0,0.00017603,2]
[327785715,1716477057926,150.0,0.00017537,2]
[327785716,1716477057988,150.0,0.00017576,2]
[327785717,1716477058049,150.0,0.00017625,2]
[327785718,1716477058110,150.0,0.00017681,2]
[327785719,1716477058176,150.0,0.00017744,2]
[327785720,1716477058237,150.0,0.00017571,2]
[327785721,1716477058298,150.0,0.00017545,2]
[327785722,1716477058362,150.0,0.00017751,2]
[327785723,1716477058425,150.0,0.00017571,2]
[327785724,1716477058490,150.0,0.00017786,2]
[327785725,1716477058552,150.0,0.00017538,2]
[327785726,1716477058622,150.0,0.00017661,2]
[327785727,1716477058688,150.0,0.0001757,2]
[327785728,1716477058748,150.0,0.00017689,2]
[327785729,1716477058808,150.0,0.00017641,2]
[327785730,1716477058868,150.0,0.00017617,2]
[327785731,1716477058928,150.0,0.00017681,2]
[327785732,1716477059019,150.0,0.00017758,2]
[327785733,1716477059111,150.0,0.00017546,2]
[327785734,1716477059170,150.0,0.00017791,2]
[327785735,1716477059232,150.0,0.0001776,2]
[327785736,1716477059290,150.0,0.00017787,2]
[327785737,1716477059349,490.37703694,0.00016875,2]
[327785738,1716477059409,150.0,0.00017795,2]
[327785739,1716477059478,150.0,0.00017761,2]
[327785740,1716477059538,150.0,0.00017596,2]
[327785741,1716477059602,150.0,0.00017589,2]
[327785742,1716477073184,155.25,0.00021918,2]
[327785743,1716477073799,152.0,0.00022,2]
[327785744,1716477074164,152.0,0.0002329,2]
[327785745,1716477137551,303.09029302,0.00022119,2]
[327785746,1716477137687,151.31470382,0.00022411,2]
[327785747,1716477137837,154.6636407,0.00022172,2]
[327785748,1716477138075,303.09029302,0.00023106,2]
[327785749,1716477138892,200.0,0.00022865,2]
[327785750,1716477139947,151.25,0.00023036,2]
[327785751,1716477141643,152.96549235,0.00022056,2]
[327785752,1716477147084,151.56768367,0.00022492,2]
[327785753,1716477147561,151.56768367,0.00022695,2]
[327785754,1716477148300,150.87239784,0.00022879,2]
[327785755,1716477149578,159.18081808,0.00022103,2]
[327785756,1716477150588,157.9563382,0.00023125,2]
[327785757,1716477151157,153.3265387,0.0002234,2]
[327785758,1716477151668,153.3265387,0.00022594,2]
[327785759,1716477152039,155.78238236,0.00022545,2]
[327785760,1716477152491,153.3265387,0.00022852,2]
[327785761,1716477154127,165.43186829,0.00022509,2]
[327785762,1716477176087,554.29,0.00022827,2]
[327785763,1716477194596,11046.2475,0.00023402,2]
[327785764,1716477233126,930.35,0.00020908,2]
[327785765,1716477233381,930.35,0.00023172,2]
[327785769,1716477270199,2750.0,0.00019,2]
[327785770,1716477271303,2800.0,0.00021,2]
[327785771,1716477272452,2850.0,0.00023,2]
[327785772,1716477294193,250.0,0.00022796,2]
[327785773,1716477305549,1784.608,0.00021499,2]
[327785774,1716477306160,2000.0,0.00023402,2]
[327785775,1716477311647,200.0,0.00023402,2]
[327785776,1716477344854,190.31,0.00021499,2]
[327785777,1716477351163,23900.0,0.00022778,2]
[327785778,1716477352999,613.0,0.00021499,2]
[327785779,1716477368903,1495.22,0.00022778,2]
[327785780,1716477388854,215.0,0.00021499,2]
[327785781,1716477390276,1350.0,0.00021499,2]
[327785782,1716477407558,2056.968,0.00021499,2]
[327785783,1716477438338,282.88427348,0.00022094,2]
[327785784,1716477438747,153.55433201,0.00023362,2]
[327785785,1716477438844,282.88427348,0.00022177,2]
[327785786,1716477439711,282.88427348,0.00022251,2]
[327785787,1716477439791,151.31470382,0.00022122,2]
[327785788,1716477439887,282.88427348,0.00022327,2]
[327785789,1716477440388,282.88427348,0.00022428,2]
[327785790,1716477440784,151.31470382,0.00022631,2]
[327785791,1716477440890,282.88427348,0.00022462,2]
[327785792,1716477441274,151.31470382,0.00023206,2]
[327785793,1716477441381,282.88427348,0.00022666,2]
[327785794,1716477442618,282.88427348,0.00022817,2]
[327785795,1716477445504,175.69646541,0.00022849,2]
[327785796,1716477445979,175.69646542,0.00023214,2]
[327785797,1716477450697,157.9563382,0.00023211,2]
[327785798,1716477456357,153.3265387,0.00022224,2]
[327785799,1716477456427,151.56768367,0.00022337,2]
[327785800,1716477456615,177.9880253,0.0002225,2]
[327785801,1716477456910,153.3265387,0.00022501,2]
[327785802,1716477456969,151.56768367,0.00022857,2]
[327785803,1716477457389,151.56768367,0.00023462,2]
[327785804,1716477458445,155.07639622,0.00022809,2]
[327785805,1716477525256,167.61,0.00022768,2]
[327785806,1716477543935,151.91320181,0.00031,120]
[327785807,1716477550825,257.42531475,0.00023335,2]
[327785808,1716477589351,206.16132616,0.00023471,2]
[327785809,1716477602836,259.71839579,0.00023335,2]
[327785810,1716477605960,5757.0,0.00021499,2]
[327785811,1716477610188,242.36,0.00022772,2]
[327785812,1716477621632,840.0,0.00022772,2]
[327785813,1716477645190,2000.0,0.00022774,2]
[327785814,1716477695225,229.32,0.00013973,2]
[327785815,1716477695472,229.32,0.00020447,2]
[327785818,1716477727027,450.04,0.00022806,2]
[327785821,1716477737809,154.6636407,0.00022332,2]
[327785822,1716477737881,153.55433201,0.00022076,2]
[327785823,1716477737947,207.44846722,0.00022223,2]
[327785824,1716477738419,207.44846722,0.00022272,2]
[327785825,1716477738917,207.44846722,0.0002245,2]
[327785826,1716477739482,207.44846722,0.00023492,2]
[327785827,1716477744021,151.31470382,0.00022109,2]
[327785828,1716477745079,151.31470382,0.0002239,2]
[327785833,1716477746164,151.31470382,0.00023303,2]
[327785834,1716477748008,150.97582735,0.00022678,2]
[327785835,1716477749098,156.04052419,0.00022391,2]
[327785836,1716477749632,156.04052419,0.00023328,2]
[327785837,1716477755331,151.56768367,0.00022211,2]
[327785838,1716477755495,157.9563382,0.00022766,2]
[327785839,1716477755664,154.03762696,0.00022383,2]
[327785840,1716477755884,155.07639622,0.00023041,2]
[327785841,1716477755948,151.56768367,0.00023132,2]
[327785842,1716477756312,178.06496912,0.00022526,2]
[327785843,1716477756382,154.03762696,0.00022404,2]
[327785844,1716477756482,151.56768367,0.00023334,2]
[327785845,1716477757240,157.47813498,0.00022287,2]
[327785846,1716477757865,153.3265387,0.00022907,2]
[327785847,1716477758350,153.3265387,0.00023373,2]
[327785851,1716477766293,837.31,0.00020942,2]
[327785852,1716477766542,837.31,0.00023206,2]
[327785853,1716477787880,207.6888161,0.00022678,2]